fUSD/lending_fUSD_20250630
["ID","MTS","AMOUNT","RATE_DAILY","PERIOD"]
[368671596,1751289047045,-300.78988631,0.00014108,2]
[368671597,1751289047054,-153.0,0.00014108,2]
[368671599,1751289047063,-153.0,0.00014108,2]
[368671600,1751289047073,-153.0,0.00014108,2]
[368671602,1751289047082,-187.4531796,0.00014108,2]
[368671604,1751289047092,-158.04828173,0.00014108,2]
[368671606,1751289047101,-153.0,0.00014108,2]
[368671608,1751289047110,-154.38816075,0.00014108,2]
[368671610,1751289047119,-8116.27,0.00014108,2]
[368671612,1751289047129,-804.64,0.00014108,2]
[368671614,1751289047138,-964.38,0.00014108,2]
[368671616,1751289047148,-1655.21,0.00014108,2]
[368671618,1751289047161,-2529.63,0.00014108,2]
[368671620,1751289047171,-657.48,0.00014108,2]
[368671622,1751289047180,-1794.38,0.00014108,2]
[368671624,1751289047189,-1759.62,0.00014108,2]
[368671626,1751289047200,-807.72,0.00014108,2]
[368671629,1751289047210,-1531.86,0.00014108,2]
[368671631,1751289047219,-151.0,0.00014108,2]
[368671633,1751289047229,-1202.0,0.00014108,2]
[368671635,1751289047240,-1202.0,0.00014108,2]
[368671637,1751289047249,-1202.0,0.00014108,2]
[368671639,1751289047258,-1202.0,0.00014108,2]
[368671641,1751289047268,-1202.0,0.00014108,2]
[368671643,1751289047277,-1202.0,0.00014108,2]
[368671645,1751289047286,-151.0,0.00014108,2]
[368671647,1751289047295,-151.0,0.00014108,2]
[368671649,1751289047304,-2926.62,0.00014108,2]
[368671651,1751289047314,-1202.0,0.00014108,2]
[368671653,1751289047323,-1202.0,0.00014108,2]
[368671655,1751289047332,-1202.0,0.00014108,2]
[368671657,1751289047342,-151.0,0.00014108,2]
[368671659,1751289047351,-1202.0,0.00014108,2]
[368671661,1751289047360,-151.0,0.00014108,2]
[368671663,1751289047370,-1202.0,0.00014108,2]
[368671665,1751289047379,-151.0,0.00014108,2]
[368671667,1751289047388,-1202.0,0.00014108,2]
[368671669,1751289047398,-166.0,0.00014108,2]
[368671671,1751289047407,-1202.0,0.00014108,2]
[368671673,1751289047416,-1202.0,0.00014108,2]
[368671675,1751289047426,-151.0,0.00014108,2]
[368671677,1751289047435,-168.22940942,0.00014108,2]
[368671679,1751289047444,-1202.0,0.00014108,2]
[368671681,1751289047454,-1202.0,0.00014108,2]
[368671683,1751289047463,-1202.0,0.00014108,2]
[368671685,1751289047473,-151.0,0.00014108,2]
[368671686,1751289047482,-1202.0,0.00014108,2]
[368671688,1751289047492,-151.0,0.00014108,2]
[368671691,1751289047502,-591.83755046,0.00014108,2]
[368671692,1751289047511,-151.0,0.00014108,2]
[368671695,1751289047521,-151.0,0.00014108,2]
[368671697,1751289047530,-151.0,0.00014108,2]
[368671699,1751289047540,-151.0,0.00014108,2]
[368671701,1751289047550,-151.0,0.00014108,2]
[368671703,1751289047560,-500.0,0.00014108,2]
[368671705,1751289047570,-442.36218683,0.00014108,2]
[368671707,1751289047579,-306.32064403,0.00014108,2]
[368671709,1751289047589,-466.39349117,0.00014108,2]
[368671711,1751289047599,-500.0,0.00014108,2]
[368671713,1751289047608,-500.0,0.00014108,2]
[368671714,1751289047618,-500.0,0.00014108,2]
[368671717,1751289047627,-500.0,0.00014108,2]
[368671719,1751289047637,-500.0,0.00014108,2]
[368671720,1751289047647,-490.0,0.00014109,2]
[368671723,1751289047658,-490.0,0.00014109,2]
[368671725,1751289047667,-580.43,0.00014109,2]
[368671727,1751289047677,-795.33,0.00014109,2]
[368671729,1751289047686,-490.0,0.00014109,2]
[368671731,1751289047695,-490.0,0.00014109,2]
[368671733,1751289047705,-511.02,0.00014109,2]
[368671735,1751289047714,-490.0,0.00014109,2]
[368671737,1751289047723,-490.0,0.00014109,2]
[368671739,1751289047733,-490.0,0.00014109,2]
[368671741,1751289047743,-490.0,0.00014109,2]
[368671743,1751289047752,-490.0,0.00014109,2]
[368671745,1751289047762,-490.0,0.00014109,2]
[368671747,1751289047772,-789.33,0.00014109,2]
[368671749,1751289047784,-490.0,0.00014109,2]
[368671751,1751289047794,-490.0,0.00014109,2]
[368671753,1751289047805,-490.0,0.00014109,2]
[368671755,1751289047815,-490.0,0.00014109,2]
[368671757,1751289047824,-490.0,0.00014109,2]
[368671759,1751289047834,-490.0,0.00014109,2]
[368671761,1751289047843,-490.0,0.00014109,2]
[368671763,1751289047854,-490.0,0.00014109,2]
[368671765,1751289047863,-490.0,0.00014109,2]
[368671767,1751289047873,-490.0,0.00014109,2]
[368671769,1751289047883,-490.0,0.00014109,2]
[368671771,1751289047893,-490.0,0.00014109,2]
[368671773,1751289047905,-490.0,0.00014109,2]
[368671775,1751289047914,-806.18,0.00014109,2]
[368671777,1751289047925,-490.0,0.00014109,2]
[368671779,1751289047937,-490.0,0.00014109,2]
[368671781,1751289047948,-490.0,0.00014109,2]
[368671783,1751289047958,-490.0,0.00014109,2]
[368671785,1751289047969,-510.09,0.00014109,2]
[368671787,1751289047980,-790.26,0.00014109,2]
[368671789,1751289047989,-490.0,0.00014109,2]
[368671791,1751289047999,-727.8,0.00014109,2]
[368671793,1751289048009,-490.0,0.00014109,2]
[368671795,1751289048018,-531.67,0.00014109,2]
[368671797,1751289048028,-490.0,0.00014109,2]
[368671799,1751289048038,-490.0,0.00014109,2]
[368671801,1751289048047,-490.0,0.00014109,2]
[368671803,1751289048057,-490.0,0.00014109,2]
[368671805,1751289048066,-490.0,0.00014109,2]
[368671807,1751289048076,-490.0,0.00014109,2]
[368671809,1751289048085,-490.0,0.00014109,2]
[368671811,1751289048096,-490.0,0.00014109,2]
[368671813,1751289048106,-490.0,0.00014109,2]
[368671815,1751289048115,-490.0,0.00014109,2]
[368671817,1751289048124,-60.06639863,0.00014109,2]
[368671958,1751289051162,23064.41922701,0.00014099,2]
[368671959,1751289051184,3281.80154859,0.00014099,2]
[368671960,1751289053050,5000.0,0.00014008,2]
[368671961,1751289076934,248.58,0.00013177,2]
[368671962,1751289092527,1379.98240948,0.0001409,2]
[368671963,1751289122177,300.0,0.00014099,2]
[368671964,1751289180062,150.0,0.00013902,2]
[368671965,1751289180229,150.0,0.00013874,2]
[368671966,1751289180351,150.0,0.0001409,2]
[368671967,1751289180450,150.0,0.00014065,2]
[368671968,1751289180699,150.0,0.00013956,2]
[368671969,1751289180749,150.0,0.0001385,2]
[368671970,1751289180778,150.0,0.00013981,2]
[368671971,1751289180859,150.0,0.0001388,2]
[368671972,1751289180892,150.0,0.00014055,2]
[368671973,1751289180927,150.0,0.00014078,2]
[368671974,1751289180957,150.0,0.00014032,2]
[368671975,1751289180996,150.0,0.00014028,2]
[368671976,1751289181040,150.0,0.00013984,2]
[368671977,1751289181079,150.0,0.00013991,2]
[368671978,1751289181115,150.0,0.00013843,2]
[368671979,1751289181152,150.0,0.00013968,2]
[368671980,1751289181182,150.0,0.00014034,2]
[368671981,1751289181214,150.0,0.00014037,2]
[368671982,1751289181248,150.0,0.00013923,2]
[368671983,1751289181283,150.0,0.00013884,2]
[368671984,1751289181317,150.0,0.00013919,2]
[368671985,1751289181364,150.0,0.00013883,2]
[368671986,1751289181409,150.0,0.00014095,2]
[368671987,1751289181449,150.0,0.00013854,2]
[368671988,1751289181478,150.0,0.00014053,2]
[368671989,1751289181513,150.0,0.00014023,2]
[368671990,1751289181543,150.0,0.00013969,2]
[368671991,1751289181578,150.0,0.00013885,2]
[368671992,1751289181608,150.0,0.00013836,2]
[368671993,1751289181648,150.0,0.00013929,2]
[368671994,1751289181685,150.0,0.00013854,2]
[368671995,1751289181721,150.0,0.00013965,2]
[368671996,1751289181773,150.0,0.0001392,2]
[368671997,1751289181809,150.0,0.0001406,2]
[368671998,1751289181855,150.0,0.00013996,2]
[368671999,1751289181887,150.0,0.0001393,2]
[368672000,1751289181923,150.0,0.00013937,2]
[368672001,1751289181960,150.0,0.00013918,2]
[368672002,1751289181991,150.0,0.00014042,2]
[368672003,1751289182033,150.0,0.0001399,2]
[368672004,1751289182070,150.0,0.00013879,2]
[368672005,1751289182111,150.0,0.00013832,2]
[368672006,1751289182172,150.0,0.0001401,2]
[368672007,1751289182210,150.0,0.00014075,2]
[368672008,1751289182249,150.0,0.00013995,2]
[368672009,1751289182290,150.0,0.00013962,2]
[368672010,1751289182328,150.0,0.00013961,2]
[368672011,1751289182361,150.0,0.0001405,2]
[368672012,1751289182398,150.0,0.00013888,2]
[368672013,1751289182435,150.0,0.00013859,2]
[368672014,1751289182491,150.0,0.00013856,2]
[368672015,1751289182522,150.0,0.00013979,2]
[368672016,1751289182568,150.0,0.00013903,2]
[368672017,1751289182611,150.0,0.00013847,2]
[368672018,1751289182652,150.0,0.00013924,2]
[368672019,1751289182683,300.0,0.00014099,2]
[368672020,1751289182716,150.0,0.00013991,2]
[368672021,1751289182748,150.0,0.00014058,2]
[368672022,1751289182792,150.0,0.00013887,2]
[368672023,1751289182824,150.0,0.00013925,2]
[368672024,1751289182871,165.83286365,0.00014007,2]
[368672025,1751289182903,150.0,0.00013833,2]
[368672026,1751289182941,150.0,0.00014041,2]
[368672027,1751289183006,150.0,0.00014027,2]
[368672028,1751289183098,150.0,0.00014029,2]
[368672029,1751289183175,150.0,0.00013985,2]
[368672030,1751289183556,150.0,0.00014061,2]
[368672031,1751289183590,150.0,0.00014009,2]
[368672032,1751289183629,150.0,0.00014019,2]
[368672033,1751289183669,150.0,0.00013915,2]
[368672034,1751289183709,150.0,0.00013982,2]
[368672035,1751289183744,150.0,0.00013843,2]
[368672036,1751289183792,150.0,0.00014039,2]
[368672037,1751289183841,150.0,0.00013988,2]
[368672038,1751289183880,150.0,0.00013932,2]
[368672039,1751289183916,150.0,0.00014087,2]
[368672040,1751289183955,150.0,0.00013967,2]
[368672041,1751289184003,150.0,0.00014091,2]
[368672042,1751289184047,150.0,0.00013968,2]
[368672043,1751289184080,150.0,0.00013883,2]
[368672044,1751289184119,150.0,0.00014065,2]
[368672045,1751289184164,150.0,0.00013917,2]
[368672046,1751289184205,150.0,0.00014065,2]
[368672047,1751289184245,150.0,0.00013953,2]
[368672048,1751289184289,150.0,0.00013975,2]
[368672049,1751289184330,150.0,0.00013943,2]
[368672050,1751289184390,150.0,0.00013859,2]
[368672051,1751289184429,150.0,0.00013938,2]
[368672052,1751289184468,150.0,0.00014016,2]
[368672053,1751289184519,150.0,0.00013942,2]
[368672054,1751289184559,150.0,0.00014016,2]
[368672055,1751289184611,150.0,0.0001406,2]
[368672056,1751289184652,150.0,0.00013835,2]
[368672057,1751289184693,150.0,0.0001409,2]
[368672058,1751289184737,150.0,0.00013999,2]
[368672059,1751289184777,150.0,0.00014,2]
[368672060,1751289184810,150.0,0.0001408,2]
[368672061,1751289184863,150.0,0.00014001,2]
[368672062,1751289184903,150.0,0.00014037,2]
[368672063,1751289184941,150.0,0.00013985,2]
[368672064,1751289184985,150.0,0.00014026,2]
[368672065,1751289185025,150.0,0.00013862,2]
[368672066,1751289185088,150.0,0.0001386,2]
[368672067,1751289185134,150.0,0.00013971,2]
[368672068,1751289185177,150.0,0.00013849,2]
[368672069,1751289185215,150.0,0.00013925,2]
[368672070,1751289185258,150.0,0.00013861,2]
[368672071,1751289185299,150.0,0.00014022,2]
[368672072,1751289185338,150.0,0.00014049,2]
[368672073,1751289185382,150.0,0.00013862,2]
[368672074,1751289185424,150.0,0.00014076,2]
[368672075,1751289185477,150.0,0.00013919,2]
[368672076,1751289185530,150.0,0.00013997,2]
[368672077,1751289185598,150.0,0.00014079,2]
[368672078,1751289185906,150.0,0.00013856,2]
[368672079,1751289185946,150.0,0.00013889,2]
[368672080,1751289185986,150.0,0.00014053,2]
[368672081,1751289186026,150.0,0.0001399,2]
[368672082,1751289186070,150.0,0.00013943,2]
[368672083,1751289186687,150.0,0.00014052,2]
[368672084,1751289186726,150.0,0.00013966,2]
[368672085,1751289186777,150.0,0.00014006,2]
[368672086,1751289186817,150.0,0.00013944,2]
[368672087,1751289186852,150.0,0.00013856,2]
[368672088,1751289186893,150.0,0.00013878,2]
[368672089,1751289186937,150.0,0.00014055,2]
[368672090,1751289186978,150.0,0.00013864,2]
[368672091,1751289187067,150.0,0.00013886,2]
[368672092,1751289187767,150.0,0.00013992,2]
[368672093,1751289187836,150.0,0.00013877,2]
[368672094,1751289187871,123.80317828,0.00013873,2]
[368672095,1751289187896,26.19682172,0.00013873,2]
[368672096,1751289187935,150.0,0.00013957,2]
[368672097,1751289187973,150.0,0.00013896,2]
[368672098,1751289188005,150.0,0.00014028,2]
[368672099,1751289188042,150.0,0.00014053,2]
[368672100,1751289188087,150.0,0.0001384,2]
[368672101,1751289188119,150.0,0.00014048,2]
[368672102,1751289188162,150.0,0.00013958,2]
[368672103,1751289188206,150.0,0.00013842,2]
[368672104,1751289188236,150.0,0.00013986,2]
[368672105,1751289188290,150.0,0.00013911,2]
[368672106,1751289188327,150.0,0.00014095,2]
[368672107,1751289188465,150.0,0.00013946,2]
[368672108,1751289188498,150.0,0.0001396,2]
[368672109,1751289188553,150.0,0.00014026,2]
[368672110,1751289188753,150.0,0.00013854,2]
[368672111,1751289188803,150.0,0.00013971,2]
[368672112,1751289188834,150.0,0.00013854,2]
[368672113,1751289188870,150.0,0.00013978,2]
[368672114,1751289188905,150.0,0.00013965,2]
[368672115,1751289188943,150.0,0.00013865,2]
[368672116,1751289189008,150.0,0.00013898,2]
[368672117,1751289189117,150.0,0.00014056,2]
[368672118,1751289189148,150.0,0.00013996,2]
[368672119,1751289189251,150.0,0.00014059,2]
[368672120,1751289189283,150.0,0.00013931,2]
[368672121,1751289189320,150.0,0.00013948,2]
[368672122,1751289189353,150.0,0.00014096,2]
[368672123,1751289189389,150.0,0.00013889,2]
[368672124,1751289189454,150.0,0.00014027,2]
[368672125,1751289189485,150.0,0.00013833,2]
[368672126,1751289189527,150.0,0.00013962,2]
[368672127,1751289189565,150.0,0.0001398,2]
[368672128,1751289189597,150.0,0.00013903,2]
[368672129,1751289189634,150.0,0.00014075,2]
[368672130,1751289189667,150.0,0.00013851,2]
[368672131,1751289189761,150.0,0.00013936,2]
[368672132,1751289189819,150.0,0.00014096,2]
[368672133,1751289189872,150.0,0.00014014,2]
[368672134,1751289189904,150.0,0.00013992,2]
[368672135,1751289189950,150.0,0.00013937,2]
[368672136,1751289190056,150.0,0.00014016,2]
[368672137,1751289190087,150.0,0.00013956,2]
[368672138,1751289190130,150.0,0.00014037,2]
[368672139,1751289190180,150.0,0.00014075,2]
[368672140,1751289190255,150.0,0.00014092,2]
[368672141,1751289190301,150.0,0.00014068,2]
[368672142,1751289190331,150.0,0.00013865,2]
[368672143,1751289190448,150.0,0.00014085,2]
[368672144,1751289190483,212.40524073,0.00013866,2]
[368672145,1751289190698,165.83286365,0.00014096,2]
[368672146,1751289192179,150.0,0.00014027,2]
[368672147,1751289192216,150.0,0.00014069,2]
[368672148,1751289192249,150.0,0.00013914,2]
[368672149,1751289192287,150.0,0.00013858,2]
[368672150,1751289192329,150.0,0.0001406,2]
[368672151,1751289192446,150.0,0.00013837,2]
[368672152,1751289192479,150.0,0.00013984,2]
[368672153,1751289192519,150.0,0.00014002,2]
[368672154,1751289192598,150.0,0.00013899,2]
[368672155,1751289192678,150.0,0.00013981,2]
[368672156,1751289193728,2035.67709,0.00025,120]
[368672157,1751289196289,557.99208,0.00025,120]
[368672158,1751289201080,500.0,0.00026,120]
[368672159,1751289220134,5000.0,0.00014011,2]
[368672160,1751289240200,150.0,0.00014006,2]
[368672161,1751289240267,150.0,0.00013968,2]
[368672162,1751289240320,150.0,0.00013945,2]
[368672163,1751289240375,150.0,0.00013843,2]
[368672164,1751289240530,150.0,0.00013935,2]
[368672165,1751289241698,150.0,0.00013866,2]
[368672166,1751289245741,2289.51145389,0.00014006,2]
[368672167,1751289250732,2289.51145386,0.00014037,2]
[368672168,1751289255727,2289.51145386,0.00014068,2]
[368672169,1751289260775,2289.51145386,0.00014099,2]
[368672170,1751289265788,490.0,0.00014099,2]
[368672171,1751289277552,490.0,0.00014099,2]
[368672172,1751289280184,490.0,0.00014099,2]
[368672173,1751289284611,1027.14,0.00014099,2]
[368672174,1751289291828,490.0,0.00014099,2]
[368672175,1751289300912,490.0,0.00014099,2]
[368672176,1751289303463,1200.0,0.00014099,2]
[368672177,1751289303666,587.6,0.00014099,2]
[368672178,1751289319133,572.77925843,0.00014099,2]
[368672179,1751289319156,235.48074157,0.00014099,2]
[368672180,1751289322952,490.0,0.00014099,2]
[368672181,1751289323750,490.0,0.00014099,2]
[368672182,1751289325569,490.0,0.00014099,2]
[368672183,1751289330527,556.25,0.00014099,2]
[368672184,1751289331498,490.0,0.00014099,2]
[368672185,1751289331603,762.2,0.00014099,2]
[368672186,1751289335455,490.0,0.00014099,2]
[368672189,1751289343443,490.0,0.00014099,2]
[368672190,1751289346627,1007.62648342,0.00014,2]
[368672191,1751289346716,490.0,0.00014099,2]
[368672192,1751289347765,490.0,0.00014099,2]
[368672193,1751289352744,165.83286365,0.00014,2]
[368672194,1751289353838,756.44,0.00014099,2]
[368672195,1751289356024,490.0,0.00014099,2]
[368672196,1751289361762,490.0,0.00014099,2]
[368672197,1751289361861,300.0,0.00014099,2]
[368672198,1751289362983,658.14,0.00014099,2]
[368672200,1751289365287,323.82591825,0.00014,2]
[368672201,1751289366133,490.0,0.00014099,2]
[368672202,1751289369532,697.9,0.00014099,2]
[368672203,1751289370280,323.82591817,0.00014032,2]
[368672204,1751289372872,490.0,0.00014099,2]
[368672205,1751289374840,556.65,0.00014099,2]
[368672206,1751289375324,323.82591817,0.00014063,2]
[368672207,1751289376033,1219.78,0.00014099,2]
[368672208,1751289378082,496.57,0.00014099,2]
[368672209,1751289379185,5000.0,0.00014009,2]
[368672210,1751289379986,490.0,0.00014099,2]
[368672211,1751289380278,323.82591817,0.00014095,2]
[368672212,1751289383881,490.0,0.00014099,2]
[368672213,1751289386880,901.47,0.00014099,2]
[368672214,1751289389420,490.0,0.00014099,2]
[368672215,1751289389454,490.0,0.00014099,2]
[368672216,1751289390399,714.38,0.00014099,2]
[368672217,1751289393664,490.0,0.00014099,2]
[368672218,1751289396746,490.0,0.00014099,2]
[368672219,1751289398257,2675.27,0.00014099,2]
[368672220,1751289398521,1017.39,0.00014099,2]
[368672221,1751289403539,490.0,0.00014099,2]
[368672222,1751289404230,1255.36,0.00014099,2]
[368672223,1751289407048,417.9562386,0.00014099,2]
[368672224,1751289407072,510.3437614,0.00014099,2]
[368672225,1751289408115,551.01,0.00014099,2]
[368672226,1751289410389,150.0,0.00013145,2]
[368672227,1751289412218,780.46,0.00014099,2]
[368672228,1751289414915,1037.23,0.00014099,2]
[368672229,1751289415592,490.0,0.00014099,2]
[368672230,1751289417821,490.0,0.00014099,2]
[368672231,1751289420513,1184.02,0.00014099,2]
[368672232,1751289423817,490.0,0.00014099,2]
[368672233,1751289424004,715.43,0.00014099,2]
[368672234,1751289426520,490.0,0.00014099,2]
[368672235,1751289429728,750.1,0.00014099,2]
[368672236,1751289430149,490.0,0.00014099,2]
[368672237,1751289430457,757.33,0.00014099,2]
[368672238,1751289431374,490.0,0.00014099,2]
[368672240,1751289433429,256.97,0.00013699,2]
[368672241,1751289434402,490.0,0.00014099,2]
[368672242,1751289434929,490.0,0.00014099,2]
[368672243,1751289436661,-6670.0,0.000141,2]
[368672244,1751289437256,490.0,0.00014099,2]
[368672245,1751289437472,772.59,0.00014099,2]
[368672247,1751289438452,1133.47,0.00014099,2]
[368672248,1751289440404,490.0,0.00014099,2]
[368672249,1751289444555,976.09,0.00014099,2]
[368672250,1751289444733,509.52,0.00014099,2]
[368672251,1751289449860,490.0,0.00014099,2]
[368672252,1751289450182,490.0,0.00014099,2]
[368672253,1751289450902,1459.55,0.00014099,2]
[368672254,1751289452317,560.72465045,0.00014099,2]
[368672255,1751289453800,490.0,0.00014099,2]
[368672256,1751289454509,490.0,0.00014099,2]
[368672257,1751289454879,490.0,0.00014099,2]
[368672258,1751289458090,5530.66,0.00013145,2]
[368672262,1751289461048,490.0,0.00014099,2]
[368672263,1751289461432,490.0,0.00014099,2]
[368672264,1751289462619,975.94,0.00014099,2]
[368672265,1751289463163,3058.56158815,0.00014099,2]
[368672266,1751289463187,1352.16841185,0.00014099,2]
[368672267,1751289468574,490.0,0.00014099,2]
[368672268,1751289468625,529.96,0.00014099,2]
[368672269,1751289468896,697.79,0.00014099,2]
[368672270,1751289470737,490.0,0.00014099,2]
[368672271,1751289471846,490.0,0.00014099,2]
[368672272,1751289472854,697.47,0.00014099,2]
[368672273,1751289473595,1131.79,0.00014099,2]
[368672274,1751289475873,490.0,0.00014099,2]
[368672275,1751289481530,894.78391346,0.00014,2]
[368672276,1751289484470,490.0,0.00014099,2]
[368672277,1751289485089,490.0,0.00014099,2]
[368672278,1751289485978,490.0,0.00014099,2]
[368672279,1751289487357,184.2,0.00013144,2]
[368672280,1751289487818,490.0,0.00014099,2]
[368672281,1751289488388,501.26,0.00014099,2]
[368672283,1751289491116,490.0,0.00014099,2]
[368672284,1751289491959,490.0,0.00014099,2]
[368672285,1751289496255,2947.51,0.00014099,2]
[368672286,1751289497030,490.0,0.00014099,2]
[368672287,1751289503027,938.93,0.00014099,2]
[368672288,1751289508480,490.0,0.00014099,2]
[368672289,1751289509242,500.0,0.00013638,2]
[368672290,1751289509678,1382.09,0.00014099,2]
[368672291,1751289513771,490.0,0.00014099,2]
[368672292,1751289514663,771.11,0.00014099,2]
[368672293,1751289519343,490.0,0.00014099,2]
[368672294,1751289523047,4111.93,0.00014099,2]
[368672295,1751289527257,490.0,0.00014099,2]
[368672296,1751289528053,490.0,0.00014099,2]
[368672297,1751289528263,490.0,0.00014099,2]
[368672298,1751289530683,490.0,0.00014099,2]
[368672299,1751289533661,490.0,0.00014099,2]
[368672300,1751289536400,924.2,0.00014099,2]
[368672301,1751289537985,3124.80767469,0.00014009,2]
[368672302,1751289538008,1875.19232531,0.00014009,2]
[368672303,1751289538254,490.0,0.00014099,2]
[368672304,1751289538839,490.0,0.00014099,2]
[368672305,1751289542441,300.0,0.00014099,2]
[368672306,1751289548059,215.42848761,0.00014099,2]
[368672307,1751289548635,353.37123847,0.00014099,2]
[368672308,1751289549081,1716.15,0.00014099,2]
[368672309,1751289549112,1440.27,0.00014099,2]
[368672310,1751289551024,490.0,0.00014099,2]
[368672311,1751289556882,500.20115896,0.00014099,2]
[368672312,1751289560380,490.0,0.00014099,2]
[368672313,1751289560808,490.0,0.00014099,2]
[368672314,1751289563116,622.66,0.00014099,2]
[368672315,1751289564281,404.3999992,0.00014099,2]
[368672316,1751289565558,1413.21,0.00014099,2]
[368672317,1751289566623,1586.25,0.00014099,2]
[368672318,1751289572031,490.0,0.00014099,2]
[368672319,1751289574487,1030.56,0.00014099,2]
[368672320,1751289577465,490.0,0.00014099,2]
[368672321,1751289577517,490.0,0.00014099,2]
[368672322,1751289582164,566.4,0.00014099,2]
[368672323,1751289583666,490.0,0.00014099,2]
[368672324,1751289584533,2424.23,0.00014099,2]
[368672325,1751289587013,490.0,0.00014099,2]
[368672326,1751289588488,1570.87,0.00014099,2]
[368672327,1751289594800,564.11,0.00014099,2]
[368672328,1751289597596,726.91,0.00014099,2]
[368672329,1751289598012,490.0,0.00014099,2]
[368672330,1751289600111,6833.88,0.00014099,2]
[368672331,1751289601331,465.90679045,0.00014099,2]
[368672332,1751289601357,734.09320955,0.00014099,2]
[368672333,1751289601731,300.0,0.00014099,2]
[368672334,1751289603568,490.0,0.00014099,2]
[368672335,1751289603683,1000.0,0.00014101,4]
[368672336,1751289603808,1000.0,0.00014102,4]
[368672337,1751289604182,666.33,0.00014099,2]
[368672338,1751289608269,167.36,0.00013154,2]
[368672339,1751289610811,490.0,0.00014099,2]
[368672340,1751289611046,628.49,0.00014099,2]
[368672341,1751289612730,630.08,0.00014099,2]
[368672342,1751289614034,490.0,0.00014099,2]
[368672343,1751289614346,1000.0,0.00013148,2]
[368672344,1751289615462,1228.06,0.00014099,2]
[368672345,1751289616855,490.0,0.00014099,2]
[368672346,1751289617387,1168.96,0.00014099,2]
[368672347,1751289619520,490.0,0.00014099,2]
[368672348,1751289620654,1090.38,0.00014099,2]
[368672349,1751289621414,1373.70687237,0.00014,2]
[368672350,1751289621546,490.0,0.00014099,2]
[368672351,1751289622063,1390.09,0.00014099,2]
[368672352,1751289624665,490.0,0.00014099,2]
[368672353,1751289624953,490.0,0.00014099,2]
[368672354,1751289625602,355.27895291,0.00014099,2]